fUSD/lending_fUSD_20250403
["ID","MTS","AMOUNT","RATE_DAILY","PERIOD"]
[357058592,1743665431963,-206.41101217,0.00014999,2]
[357058593,1743665431973,-505.09794047,0.00014999,2]
[357058594,1743665431982,-150.0,0.00014999,2]
[357058595,1743665431991,-18018.90279027,0.00015,2]
[357058596,1743665432003,-2173.62103302,0.00015,2]
[357058597,1743665432148,-1050.0,0.00015,2]
[357058598,1743665432181,-317.52150297,0.00015,2]
[357058606,1743665437809,-9233.78530608,0.00015,2]
[357058607,1743665437926,-1233.42756601,0.00015,2]
[357058608,1743665437938,-12208.63895656,0.00015,2]
[357058609,1743665437950,-392.55054101,0.00015,2]
[357058610,1743665437964,-10078.75748,0.00015,2]
[357058611,1743665437975,-308.29665982,0.00015,2]
[357058612,1743665437987,-542.29345989,0.00015,2]
[357058634,1743665439920,-399.3,0.00015,2]
[357058635,1743665440369,-2442.9798114,0.00015,2]
[357058636,1743665440380,-304.42418195,0.00015,2]
[357058718,1743665443796,-6321.76568939,0.00015,2]
[357058720,1743665443807,-2490.46897881,0.00015,2]
[357058724,1743665443837,-96.63254865,0.00015,2]
[357058726,1743665443848,-8018.53540639,0.00015,2]
[357058816,1743665446122,-3560.1397873,0.00015,2]
[357058817,1743665446134,-1793.64732044,0.00015,2]
[357058819,1743665446454,-300.0,0.00015,2]
[357058847,1743665455938,200.0,0.000146,5]
[357058848,1743665458083,500.0,0.000147,5]
[357058849,1743665460181,700.0,0.000148,5]
[357058850,1743665462274,1000.0,0.000149,5]
[357058851,1743665497296,-150.0,0.000149,2]
[357058857,1743665910788,216.319,0.000147,2]
[357058861,1743666382471,3161.1657,0.000148,2]
[357058862,1743666444145,-150.0,0.00014899,2]
[357058863,1743666444167,-1000.0,0.000149,2]
[357058864,1743666444189,-314.17005186,0.000149,2]
[357058865,1743666445237,-8655.37074814,0.000149,2]
[357058866,1743666445258,-292.94888412,0.000149,2]
[357058867,1743666445281,-1728.74153878,0.000149,2]
[357058869,1743666545096,-151.70748791,0.000149,2]
[357058870,1743666554055,-559.06047331,0.000149,2]
[357058871,1743666554108,-182.31819447,0.000149,2]
[357058872,1743666554158,-10075.33219998,0.000149,2]
[357058873,1743666554222,-2157.15122354,0.000149,2]
[357058874,1743666554268,-1082.8891,0.000149,2]
[357058875,1743666554319,-6624.97960596,0.000149,2]
[357058883,1743666579100,-1640.74969404,0.000149,2]
[357058884,1743666579148,-1000.0,0.000149,2]
[357058885,1743666579198,-2500.0,0.000149,2]
[357058886,1743666579248,-4165.6577117,0.000149,2]
[357058895,1743666632325,-3008.04834254,0.000149,2]
[357058897,1743666632338,-151.12870614,0.00014989,2]
[357058899,1743666632347,-1019.67895132,0.0001499,2]
[357058901,1743666632359,-2254.90318443,0.0001499,2]
[357058907,1743666632665,-1816.92473786,0.0001499,2]
[357058908,1743666632677,-556.24260648,0.0001499,2]
[357058909,1743666632686,-1342.0,0.00015,2]
[357058910,1743666632696,-58057.9959271,0.00015,2]
[357058911,1743666632879,-3473.13022299,0.00015,2]
[357058912,1743666632898,-4309.6899302,0.00015,2]
[357058913,1743666632910,-9585.79932388,0.00015,2]
[357058914,1743666632922,-1366.11048177,0.00015,2]
[357058915,1743666632934,-13813.75226106,0.00015,2]
[357058916,1743666632945,-2782.84261389,0.00015,2]
[357058917,1743666632962,-687.92150937,0.00015,2]
[357058918,1743666632973,-3282.79697233,0.00015,2]
[357058919,1743666632985,-787.72537109,0.00015,2]
[357058920,1743666632996,-367.35042861,0.00015,2]
[357058927,1743666638016,-355.69937005,0.00015,2]
[357058928,1743666638029,-3317.6256493,0.00015,2]
[357058929,1743666638041,-747506.8232096,0.00015,2]
[357058930,1743666638076,-14246.31060323,0.00015,2]
[357058931,1743666638088,-47149.82093999,0.00015,2]
[357058932,1743666638251,-786.946942,0.00015,2]
[357058933,1743666638264,-988.0907459,0.00015,2]
[357058997,1743666640247,-1207.0,0.00015,2]
[357058998,1743666640257,-1100155.65446533,0.00015,2]
[357058999,1743666640268,-551201.11479325,0.00015,2]
[357059000,1743666640510,-353.5095,0.00015,2]
[357059001,1743666640521,-682.7470551,0.00015,2]
[357059043,1743666644156,-619.2449657,0.000149,2]
[357059044,1743666644182,-380.7550343,0.000149,2]
[357059045,1743666644192,-1262.75294454,0.00015,2]
[357059046,1743666644214,-20999.99999995,0.00015,2]
[357059047,1743666644229,-754.32475265,0.00015,2]
[357059048,1743666644240,-293.75433028,0.00015,2]
[357059049,1743666644255,-724.35005528,0.00015,2]
[357059052,1743666645975,-500.0,0.00015,2]
[357059053,1743666646198,-587.0,0.00015,2]
[357059054,1743666646209,-35.15636844,0.00015,2]
[357059062,1743666745568,499.99999999,0.00034918,120]
[357059063,1743666750897,287.33812896,0.000148,2]
[357059064,1743666761214,-2500.0,0.000149,2]
[357059065,1743666761242,-4533.0143,0.000149,2]
[357059066,1743666761268,-150.0,0.00014999,2]
[357059067,1743666761297,-79016.9857,0.00015,2]
[357059068,1743666763764,500.0,0.00034918,120]
[357059069,1743666784590,500.0,0.00034918,120]
[357059070,1743666789067,500.0,0.00034918,120]
[357059071,1743666803795,500.0,0.00034918,120]
[357059072,1743666806363,500.0,0.00034918,120]
[357059073,1743666823084,500.0,0.00034918,120]
[357059074,1743666825056,500.0,0.00034918,120]
[357059075,1743666826992,500.0,0.00034918,120]
[357059076,1743666856207,881.83289446,0.00032,120]
[357059077,1743666871160,500.0,0.00032,120]
[357059078,1743666999822,-156.62740908,0.0001489,2]
[357059079,1743667015608,-150.02331587,0.0001489,2]
[357059080,1743667238619,1028.59,0.00034917,30]
[357059085,1743667600776,-150.0,0.0001489,2]
[357059086,1743667632493,-941.32571832,0.0001489,2]
[357059087,1743667633173,-154.000581,0.0001489,2]
[357059088,1743667650092,-2442.40619802,0.0001489,2]
[357059089,1743667650120,-2877.4178,0.000149,2]
[357059090,1743667650146,-6965.05832761,0.000149,2]
[357059091,1743667652105,-1256.34575965,0.000149,2]
[357059092,1743667738683,-27788.17821274,0.000149,2]
[357059093,1743667738711,-1000.0,0.000149,2]
[357059094,1743667738741,-2959.3144,0.000149,2]
[357059095,1743667738776,-12093.9001,0.000149,2]
[357059096,1743667738816,-2533.5936,0.000149,2]
[357059097,1743667738849,-500.0,0.000149,2]
[357059098,1743667738877,-2500.0,0.000149,2]
[357059099,1743667738919,-11024.89782204,0.000149,2]
[357059100,1743667738952,-224790.78078558,0.00015,2]
[357059101,1743667738982,-34612.047271,0.00015,2]
[357059102,1743667745576,2500.0,0.000149,2]
[357059103,1743667753518,7714.6802,0.000149,2]
[357059104,1743667753903,-350.0,0.00015257,12]
[357059110,1743667832060,-614.0,0.00015263,2]
[357059112,1743667832069,-1664.85029522,0.00015271,2]
[357059114,1743667832080,-1906.8639001,0.00015271,2]
[357059115,1743667832091,-288.0,0.00015271,2]
[357059116,1743667832102,-1592.75700802,0.00015271,2]
[357059117,1743667832114,-334.31699626,0.00015271,2]
[357059118,1743667832123,-741.11300374,0.00015271,2]
[357059119,1743667832141,-419.33186499,0.00015271,2]
[357059120,1743667832181,-1434.24613958,0.00015271,2]
[357059121,1743667832193,-259.86773679,0.00015271,2]
[357059122,1743667832203,-250.0,0.0001639,2]
[357059123,1743667832212,-350.0,0.00016798,12]
[357059124,1743667832222,-6506.12629237,0.00018756,2]
[357059125,1743667832231,-11024.89782199,0.00018789,2]
[357059126,1743667832241,-201.92796628,0.00019,2]
[357059127,1743667832250,-6879.5634235,0.00019,2]
[357059128,1743667832259,-596.76154087,0.0002,4]
[357059129,1743667832268,-154.387,0.00022079,2]
[357059130,1743667832278,-1118.0,0.00022079,2]
[357059131,1743667832287,-7649.80485489,0.00022678,2]
[357059132,1743667832298,-3375.0929671,0.00022678,2]
[357059133,1743667832308,-3560.67016111,0.00022904,2]
[357059134,1743667832319,-593.97164063,0.00022904,2]
[357059135,1743667832339,-2301.69364713,0.00022904,2]
[357059136,1743667832349,-158.1188392,0.00023425,2]
[357059137,1743667832368,-183.80962678,0.00023425,2]
[357059138,1743667832377,-1159.47502371,0.00024799,10]
[357059139,1743667832388,-1118.0,0.00025079,2]
[357059140,1743667832397,-1046.02,0.00025789,2]
[357059141,1743667832407,-6456.3354488,0.00025904,2]
[357059142,1743667832416,-3043.189335,0.00026567,2]
[357059143,1743667832427,-4838.834284,0.00026567,2]
[357059144,1743667832439,-3142.87420299,0.00026567,2]
[357059145,1743667832448,-150.0,0.00026776,7]
[357059146,1743667832457,-309.39,0.00026849,3]
[357059147,1743667832466,-196.21,0.00026849,2]
[357059148,1743667832476,-397.09,0.00026849,2]
[357059149,1743667832485,-500.0,0.00026989,2]
[357059150,1743667832495,-250.0,0.00027,2]
[357059151,1743667832504,-723.67620942,0.00027095,2]
[357059152,1743667832516,-276.32379058,0.00027095,2]
[357059153,1743667832526,-250.0,0.00027102,2]
[357059154,1743667832536,-163.49,0.00027135,2]
[357059155,1743667832545,-300.0,0.00027397,30]
[357059156,1743667832555,-190.21,0.00027549,2]
[357059157,1743667832564,-1891.68120942,0.00027929,2]
[357059158,1743667832576,-254.33428482,0.00027929,2]
[357059159,1743667832587,-415.32026094,0.00027929,2]
[357059160,1743667832598,-975.09804948,0.00027929,2]
[357059161,1743667832610,-963.81641169,0.00027929,2]
[357059162,1743667832631,-718.78087629,0.00027929,2]
[357059163,1743667832653,-4592.15331119,0.00027929,2]
[357059164,1743667832665,-1133.11323801,0.00027929,2]
[357059165,1743667832677,-10173.95825475,0.00027929,2]
[357059166,1743667832689,-2781.74410341,0.00027929,2]
[357059167,1743667832698,-500.0,0.00027963,5]
[357059168,1743667832708,-1046.02,0.00028053,2]
[357059169,1743667832717,-417.6888841,0.00028079,2]
[357059170,1743667832729,-700.3111159,0.00028079,2]
[357059171,1743667832738,-200.0,0.000281,2]
[357059172,1743667832748,-720.19916087,0.00028384,2]
[357059173,1743667832764,-63.60083913,0.00028384,2]
[357059174,1743667832774,-444.61,0.00028384,2]
[357059175,1743667832783,-295.07369087,0.00028384,2]
[357059176,1743667832795,-488.72630913,0.00028384,2]
[357059177,1743667832805,-444.61,0.00028384,2]
[357059178,1743667832815,-95.45369087,0.00028384,2]
[357059179,1743667832827,-349.15630913,0.00028384,2]
[357059180,1743667832837,-401.21846131,0.00028384,2]
[357059181,1743667832855,-382.58153869,0.00028384,2]
[357059182,1743667832865,-444.61,0.00028384,2]
[357059183,1743667832874,-444.61,0.00028384,2]
[357059184,1743667832885,-150.0,0.00028593,2]
[357059185,1743667832895,-173.055,0.00028643,20]
[357059186,1743667832904,-783.8,0.00028688,2]
[357059187,1743667832915,-444.61,0.00028688,2]
[357059188,1743667832924,-783.8,0.00028788,2]
[357059189,1743667832933,-444.61,0.00028788,2]
[357059190,1743667832943,-783.8,0.00028788,2]
[357059191,1743667832952,-444.61,0.00028788,2]
[357059192,1743667832961,-499.70678404,0.00028889,5]
[357059193,1743667832970,-6456.3354488,0.00028903,2]
[357059194,1743667832980,-444.61,0.00028988,2]
[357059195,1743667832988,-783.8,0.00028988,2]
[357059196,1743667832997,-783.8,0.00028988,2]
[357059197,1743667833006,-444.61,0.00028988,2]
[357059198,1743667833016,-300.0,0.00029,2]
[357059199,1743667833025,-783.8,0.00029088,2]
[357059200,1743667833035,-444.61,0.00029088,2]
[357059201,1743667833045,-200.0,0.000291,2]
[357059202,1743667833054,-1666.0,0.000291,2]
[357059203,1743667833064,-5554.0,0.000301,3]
[357059204,1743667833075,-793.67463119,0.00030187,3]
[357059205,1743667833085,-51.82421326,0.00030316,2]
[357059206,1743667833097,-994.19578674,0.00030316,2]
[357059207,1743667833108,-347.09,0.00030438,2]
[357059208,1743667833119,-150.0,0.00030438,2]
[357059209,1743667833128,-306.93,0.00030438,2]
[357059210,1743667833139,-6130.16336614,0.00030456,2]
[357059219,1743667838071,-548.55281673,0.00030456,2]
[357059220,1743667838094,-4346.18163912,0.00030456,2]
[357059221,1743667838108,-1000.0,0.00030481,2]
[357059222,1743667838122,-200.0,0.00031,2]
[357059223,1743667838136,-350.0,0.00031,2]
[357059224,1743667838154,-876.885,0.00031079,2]
[357059225,1743667838164,-5554.0,0.000311,5]
[357059226,1743667838174,-300.0,0.00031235,30]
[357059227,1743667838184,-6456.3354488,0.00031903,2]
[357059228,1743667838195,-1000.0,0.00032468,5]
[357059229,1743667838205,-1046.02,0.0003258,2]
[357059230,1743667838214,-196.21,0.00032646,2]
[357059231,1743667838224,-397.09,0.00032646,2]
[357059232,1743667838234,-155.83,0.00032932,120]
[357059233,1743667838243,-400.0,0.00033,2]
[357059234,1743667838253,-867.86191304,0.00033442,5]
[357059235,1743667838262,-46131.12817229,0.000335,7]
[357059246,1743667838280,-3926.81677718,0.000339,2]
[357059250,1743667838526,-825.36216756,0.00033917,6]
[357059252,1743667838539,-3803.91851788,0.00034,3]
[357059254,1743667838549,-168.2,0.00034137,2]
[357059256,1743667838558,-162.59,0.00034137,2]
[357059258,1743667838568,-150.0,0.00034137,2]
[357059261,1743667838577,-150.0,0.00034137,2]
[357059263,1743667838586,-166.49,0.00034137,2]
[357059265,1743667838596,-698.7,0.00034137,2]
[357059267,1743667838605,-150.0,0.00034137,2]
[357059269,1743667838614,-150.0,0.00034137,2]
[357059271,1743667838623,-2000.0,0.000342,2]
[357059272,1743667838633,-11024.89782199,0.00034344,2]
[357059273,1743667838643,-255.5907875,0.00034434,4]
[357059274,1743667838652,-303.4,0.0003463,2]
[357059275,1743667838663,-895.05,0.000347,2]
[357059276,1743667838672,-150.0,0.00034836,7]
[357059277,1743667838681,-150.0,0.00034836,7]
[357059278,1743667838690,-150.0,0.00034836,7]
[357059279,1743667838700,-150.0,0.00034836,7]
[357059280,1743667838709,-150.0,0.00034836,7]
[357059281,1743667838718,-153.932,0.00034836,7]
[357059282,1743667838727,-1046.02,0.00034844,2]
[357059283,1743667838736,-700.0,0.0003487,2]
[357059284,1743667838745,-9295.60817022,0.00034892,2]
[357059285,1743667838756,-300.0,0.000349,12]
[357059286,1743667838767,-6456.3354488,0.00034902,2]
[357059287,1743667838776,-373.79069563,0.00034917,2]
[357059288,1743667838785,-600.0,0.00034917,2]
[357059289,1743667838794,-1000.0,0.00034917,2]
[357059290,1743667838803,-150.4734081,0.00034917,2]
[357059291,1743667838814,-388.99036345,0.00034917,2]
[357059292,1743667838823,-77687.9682963,0.00034917,2]
[357059293,1743667838832,-3729.64854772,0.00034917,2]
[357059294,1743667838843,-10565.57348979,0.00034917,3]
[357059295,1743667838852,-14562.86591341,0.00034917,3]
[357059296,1743667838864,-245.59535895,0.00034917,3]
[357059297,1743667838873,-2044.05956777,0.00034917,3]
[357059298,1743667838882,-18523.50764625,0.00034917,3]
[357059299,1743667838891,-928.19,0.00034959,2]
[357059300,1743667838901,-169.93475847,0.00035,120]
[357059301,1743667838910,-168.52,0.00035,2]
[357059302,1743667838919,-450.0,0.00035,2]
[357059303,1743667838929,-300.0,0.00035073,30]
[357059304,1743667838939,-9295.60817022,0.0003546,2]
[357059305,1743667838949,-700.0,0.0003547,2]
[357059306,1743667838958,-9295.60817022,0.0003547,2]
[357059307,1743667838967,-11806.2752783,0.0003547,2]
[357059308,1743667838976,-16594.74056345,0.0003548,2]
[357059309,1743667838988,-20587.69211745,0.0003548,2]
[357059310,1743667838997,-41321.9634741,0.0003548,2]
[357059311,1743667839007,-46478.0408511,0.0003549,2]
[357059312,1743667839016,-41321.9634741,0.0003549,2]
[357059313,1743667839025,-151.0,0.0003549,7]
[357059314,1743667839034,-151.76,0.0003549,2]
[357059315,1743667839044,-82985.65847883,0.000355,4]
[357059316,1743667839054,-528.18,0.000355,2]
[357059317,1743667839063,-151.0,0.000355,7]
[357059318,1743667839072,-9295.60817022,0.00035542,2]
[357059319,1743667839081,-5903.13763915,0.00035542,2]
[357059320,1743667839091,-873.0,0.00035561,5]
[357059321,1743667839100,-2147.844,0.00035581,3]
[357059322,1743667839109,-700.0,0.0003577,2]
[357059323,1743667839118,-5903.13763915,0.0003626,2]
[357059324,1743667839127,-1066.0,0.00036488,5]
[357059325,1743667839137,-1010.5521123,0.00036518,5]
[357059326,1743667839147,-9295.60817022,0.0003658,3]
[357059327,1743667839157,-5903.13763915,0.0003658,3]
[357059328,1743667839168,-2029.87460525,0.000366,2]
[357059329,1743667839177,-209.0,0.0003669,2]
[357059330,1743667839187,-182.31819447,0.0003689,2]
[357059331,1743667839197,-700.0,0.000369,13]
[357059332,1743667839206,-234.35910732,0.00036941,10]
[357059333,1743667839216,-18591.2163404,0.0003696,3]
[357059334,1743667839226,-17709.4129174,0.0003696,3]
[357059335,1743667839235,-151.0,0.0003697,7]
[357059336,1743667839246,-27886.8245107,0.0003697,3]
[357059337,1743667839257,-29515.6881958,0.0003697,3]
[357059338,1743667839267,-46478.0408511,0.0003698,3]
[357059339,1743667839278,-41321.9634741,0.0003698,3]
[357059340,1743667839287,-5903.13763915,0.00036983,3]
[357059341,1743667839297,-152.84239687,0.00036986,2]
[357059342,1743667839307,-150.0,0.00036986,2]
[357059343,1743667839317,-500.0,0.00036986,2]
[357059344,1743667839327,-500.0,0.00036986,2]
[357059345,1743667839337,-500.0,0.00036986,2]
[357059346,1743667839346,-2695.0,0.00036986,2]
[357059347,1743667839356,-500.0,0.00036986,2]
[357059348,1743667839366,-500.0,0.00036986,2]
[357059349,1743667839376,-37182.4326809,0.0003699,3]
[357059350,1743667839386,-29515.6881958,0.0003699,3]
[357059351,1743667839398,-238.375229,0.0003699,7]
[357059352,1743667839407,-87629.23246069,0.00037,2]
[357059353,1743667839418,-2000.0,0.00037,2]
[357059354,1743667839428,-500.0,0.00037,2]
[357059355,1743667839438,-150.0,0.00037013,2]
[357059356,1743667839448,-500.0,0.00037013,2]
[357059357,1743667839458,-500.0,0.00037013,2]
[357059358,1743667839468,-500.0,0.00037013,2]
[357059359,1743667839477,-2695.0,0.00037013,2]
[357059360,1743667839486,-500.0,0.00037013,2]
[357059361,1743667839496,-500.0,0.00037013,2]
[357059362,1743667839506,-211.55,0.00037041,2]
[357059363,1743667839515,-500.0,0.00037041,2]
[357059364,1743667839525,-500.0,0.00037041,2]
[357059365,1743667839535,-500.0,0.00037041,2]
[357059366,1743667839545,-2695.0,0.00037041,2]
[357059367,1743667839554,-500.0,0.00037041,2]
[357059368,1743667839565,-500.0,0.00037041,2]
[357059369,1743667839574,-500.0,0.00037068,2]
[357059370,1743667839583,-500.0,0.00037068,2]
[357059371,1743667839593,-500.0,0.00037068,2]
[357059372,1743667839603,-2695.0,0.00037068,2]
[357059373,1743667839612,-500.0,0.00037068,2]
[357059374,1743667839622,-500.0,0.00037068,2]
[357059375,1743667839631,-500.0,0.00037096,2]
[357059376,1743667839641,-507.46289979,0.00037096,2]
[357059377,1743667839652,-500.0,0.00037096,2]
[357059378,1743667839661,-2695.0,0.00037096,2]
[357059379,1743667839671,-500.0,0.00037096,2]
[357059380,1743667839681,-575.82674177,0.00037096,2]
[357059381,1743667839690,-1046.02,0.00037108,2]
[357059382,1743667839699,-786.88485637,0.00037123,2]
[357059383,1743667839709,-500.0,0.00037123,2]
[357059384,1743667839718,-2695.0,0.00037123,2]
[357059385,1743667839728,-500.0,0.00037123,2]
[357059386,1743667839738,-500.0,0.0003715,2]
[357059387,1743667839747,-2695.0,0.0003715,2]
[357059388,1743667839757,-623.71888504,0.0003715,2]
[357059389,1743667839769,-500.0,0.00037178,2]
[357059390,1743667839779,-2695.0,0.00037178,2]
[357059391,1743667839788,-151.76,0.00037195,2]
[357059392,1743667839799,-500.0,0.00037205,2]
[357059393,1743667839808,-2695.0,0.00037205,2]
[357059394,1743667839817,-500.0,0.00037233,2]
[357059395,1743667839827,-2695.0,0.00037233,2]
[357059396,1743667839836,-500.0,0.0003726,2]
[357059397,1743667839845,-2695.0,0.0003726,2]
[357059398,1743667839855,-500.0,0.00037287,2]
[357059399,1743667839864,-2695.0,0.00037287,2]
[357059400,1743667839873,-500.0,0.00037315,2]
[357059401,1743667839883,-2695.0,0.00037315,2]
[357059402,1743667839892,-152.0,0.00037331,3]
[357059403,1743667839901,-500.0,0.00037342,2]
[357059404,1743667839910,-2695.0,0.00037342,2]
[357059405,1743667839919,-840.78428833,0.0003737,2]
[357059406,1743667839929,-2695.0,0.0003737,2]
[357059407,1743667839938,-2695.0,0.00037397,2]
[357059408,1743667839948,-151.69799671,0.00037405,14]
[357059409,1743667839957,-155.83,0.0003741,120]
[357059410,1743667839966,-2695.0,0.00037424,2]
[357059411,1743667839975,-2695.0,0.00037452,2]
[357059412,1743667839988,-2695.0,0.00037479,2]
[357059413,1743667839998,-2703.8815152,0.00037507,2]
[357059414,1743667840008,-6456.3354488,0.00037902,2]
[357059416,1743667840018,-333.35116685,0.00038,120]
[357059417,1743667840027,-260.90250285,0.00038,120]
[357059419,1743667840036,-152.0,0.00038,10]
[357059420,1743667840046,-412.9,0.00038068,2]
[357059421,1743667840056,-209.0,0.000382,2]
[357059423,1743667840065,-11024.89782199,0.00038233,2]
[357059425,1743667840074,-1066.0,0.00038409,5]
[357059427,1743667840084,-196.21,0.00038443,2]
[357059429,1743667840093,-397.09,0.00038443,2]
[357059430,1743667840103,-199.82898451,0.00038521,30]
[357059431,1743667840113,-182.55686587,0.00038867,113]
[357059432,1743667840122,-300.0,0.00038911,30]
[357059433,1743667840132,-199.82898451,0.00038932,30]
[357059434,1743667840144,-13000.0,0.00039,7]
[357059435,1743667840154,-627.15282574,0.00039,120]
[357059436,1743667840165,-550.0,0.00039,2]
[357059437,1743667840175,-1046.02,0.00039372,2]
[357059438,1743667840185,-2000.0,0.000397,2]
[357059439,1743667840195,-209.0,0.0003971,2]
[357059440,1743667840205,-430.74324493,0.00039789,7]
[357059441,1743667840215,-1347.5852208,0.00039789,120]
[357059442,1743667840225,-27438.1596017,0.00039797,3]
[357059443,1743667840509,-837.82036901,0.00039797,3]
[357059444,1743667840615,-0.00806063,0.00039797,3]
[357059450,1743667843101,-173.561747,0.00036961,7]
[357059452,1743667843111,-134.46205233,0.0003699,7]
[357059465,1743667844457,-39.09969467,0.0003699,7]
[357059466,1743667844467,-173.561747,0.0003726,7]
[357059467,1743667844476,-2391.07304619,0.00039797,3]
[357059491,1743667846291,-173.561747,0.00036961,7]
[357059492,1743667846302,-173.561747,0.0003699,7]
[357059493,1743667846313,-173.561747,0.0003726,7]
[357059494,1743667846322,-43254.2484358,0.00039797,3]
[357059495,1743667846377,-102664.504,0.00039797,3]
[357059496,1743667846424,-2056.07506595,0.00039797,3]
[357059503,1743668708399,172077.60760864,0.00015,2]
[357059504,1743668802056,-152.35,0.00014925,2]
[357059505,1743668831147,-492.48759764,0.0001499,2]
[357059506,1743668831172,-172.87926034,0.00014999,2]
[357059507,1743668831194,-150.0,0.00014999,2]
[357059508,1743668831221,-5792.31182012,0.00015,2]
[357059509,1743668834332,-1473.00746649,0.00015,2]
[357059510,1743668835735,400.0,0.000146,5]
[357059511,1743668837851,800.0,0.000147,5]
[357059512,1743668839944,1300.0,0.000148,5]
[357059513,1743668842082,1700.0,0.000149,5]
[357059520,1743668931186,393.97109917,0.000148,2]
[357059529,1743668980087,-2500.0,0.000149,2]
[357059530,1743668980116,-1099.63864762,0.000149,2]
[357059531,1743668980145,-4321.44930614,0.000149,2]
[357059550,1743669032766,-588.67066107,0.000149,2]
[357059551,1743669032775,-1552.753,0.000149,2]
[357059552,1743669032784,-500.0,0.00014973,2]
[357059553,1743669032793,-152.87150167,0.00014973,2]
[357059554,1743669032802,-606.14038575,0.00014973,2]
[357059555,1743669032811,-500.0,0.00014973,2]
[357059556,1743669032820,-168.26586912,0.0001499,2]
[357059557,1743669032829,-30.09023493,0.00015,2]
[357059558,1743669032841,-257.12784427,0.00015,2]
[357059579,1743669038242,-747270.97829903,0.00015,2]
[357059654,1743669044272,-1800.95838081,0.00015,2]
[357059656,1743669046512,-562.09309621,0.00015,2]
[357059661,1743669123506,151.0,0.00034913,30]
[357059662,1743669124196,151.0,0.00034913,30]
[357059663,1743669125485,151.0,0.00034913,30]
[357059664,1743669126161,151.0,0.00034913,30]
[357059665,1743669130769,537.6845,0.00034913,30]
[357059668,1743669159012,520223.81173215,0.00034913,30]
[357059669,1743669162466,455.251026,0.00014825,2]
[357059672,1743669286226,218.36395758,0.000148,2]
[357059673,1743669443952,2305.4,0.00034911,30]
[357059674,1743669510824,173.055,0.000147,2]
[357059675,1743669663743,-150.0,0.00014899,2]
[357059676,1743669663770,-2212.028,0.000149,2]
[357059677,1743669663794,-1000.0,0.000149,2]
[357059678,1743669663817,-244.1974,0.000149,2]
[357059679,1743669663841,-2993.7746,0.000149,2]
[357059688,1743669739129,357.46044774,0.0001477,2]
[357059689,1743669783166,-268.6568,0.00014899,2]
[357059690,1743669826988,60055.36715017,0.0003491,30]
[357059691,1743669831471,-31.3432,0.00014899,2]
[357059692,1743669831495,-187.4503,0.000149,2]
[357059693,1743669848527,-46.90880732,0.000149,2]
[357059694,1743669848552,-253.09119268,0.000149,2]
[357059696,1743670035863,200.0,0.000147,5]
[357059697,1743670037954,500.0,0.000148,5]
[357059698,1743670039137,-2111.70670732,0.000149,2]
[357059699,1743670039162,-1000.0,0.000149,2]
[357059700,1743670039183,-1000.0,0.000149,2]
[357059701,1743670039204,-977.5669,0.000149,2]
[357059702,1743670039224,-457.7568,0.000149,2]
[357059703,1743670039248,-4419.10797048,0.000149,2]
[357059704,1743670039269,-182.31819447,0.000149,2]
[357059705,1743670039290,-121.69974479,0.000149,2]
[357059706,1743670040054,800.0,0.000149,5]
[357059707,1743670050134,-1465.06215822,0.000149,2]
[357059708,1743670050559,2000.0,0.00014859,2]
[357059709,1743670109547,-7805.43629699,0.000149,2]
[357059710,1743670109577,-3338.40690518,0.000149,2]
[357059711,1743670109611,-2623.41937396,0.000149,2]
[357059712,1743670109640,-169.17703467,0.000149,2]
[357059713,1743670109668,-980.85282912,0.000149,2]